fUSD/lending_fUSD_20240211
["ID","MTS","AMOUNT","RATE_DAILY","PERIOD"]
[313757628,1707681042692,-14733.11368095,0.00022736,2]
[313757629,1707681042703,-161.47,0.00022763,2]
[313757630,1707681042712,-65259.67514145,0.0002285,2]
[313757631,1707681042722,-163.07386802,0.00022897,2]
[313757632,1707681042732,-173.19,0.00022901,2]
[313757633,1707681042741,-251.54,0.00023,2]
[313757634,1707681042750,-500.0,0.00023014,2]
[313757635,1707681042760,-173.33,0.00023076,2]
[313757636,1707681042769,-163.07386802,0.00023191,2]
[313757637,1707681042780,-272.87,0.00023376,2]
[313757638,1707681042789,-163.07386802,0.00023485,2]
[313757639,1707681042799,-163.07386802,0.0002378,2]
[313757640,1707681042808,-205.0,0.00023985,2]
[313757641,1707681042817,-173.19,0.00023991,2]
[313757642,1707681042827,-163.07386802,0.00024074,2]
[313757643,1707681042836,-187.78302479,0.00024353,2]
[313757644,1707681042846,-163.07386802,0.00024368,2]
[313757645,1707681042855,-247.98,0.0002439,2]
[313757646,1707681042864,-11820.00090283,0.000244,2]
[313757647,1707681042874,-37884.12,0.000244,2]
[313757648,1707681042883,-1249.71971684,0.00024421,2]
[313757649,1707681042893,-868.2,0.00024451,2]
[313757650,1707681042902,-210.0,0.00024653,2]
[313757651,1707681042911,-250.0,0.00024658,2]
[313757652,1707681042921,-163.07386802,0.00024663,2]
[313757653,1707681042931,-1937.49790764,0.0002469,2]
[313757654,1707681042940,-183.20334469,0.0002469,2]
[313757655,1707681042949,-34944.0267747,0.0002479,2]
[313757656,1707681042959,-231.89870788,0.0002479,2]
[313757657,1707681042987,-34712.12806682,0.0002479,2]
[313757658,1707681042997,-163.07386802,0.00024957,2]
[313757659,1707681043007,-1250.0,0.00025,3]
[313757660,1707681043017,-168.26749515,0.00025,2]
[313757661,1707681043026,-1591.80252541,0.00025,2]
[313757662,1707681043036,-928.12582747,0.00025,2]
[313757664,1707681043057,-376.46975109,0.00025,2]
[313757665,1707681043072,-545.83310377,0.00025,2]
[313757667,1707681043679,-58.97950478,0.00025,2]
[313757668,1707681043688,-150.0,0.00025,2]
[313757669,1707681043698,-272.87,0.0002502,2]
[313757670,1707681043708,-173.19,0.00025082,2]
[313757672,1707681043717,-164.74,0.00025198,2]
[313757674,1707681043727,-163.07386802,0.00025251,2]
[313757676,1707681043737,-380.9302187,0.00025506,2]
[313757678,1707681043747,-163.07386802,0.00025545,2]
[313757680,1707681043756,-1937.49790758,0.00025744,2]
[313757682,1707681043773,-34944.0267747,0.00025754,2]
[313757685,1707681043810,-163.07386802,0.0002584,2]
[313757688,1707681043819,-205.0,0.0002588,5]
[313757691,1707681043829,-312.69645562,0.00025911,2]
[313757693,1707681043840,-161.32750904,0.00025911,2]
[313757695,1707681043850,-295.02829947,0.00025911,2]
[313757696,1707681043863,-1500.0,0.00026,2]
[313757697,1707681043874,-163.07386802,0.00026134,2]
[313757698,1707681043884,-173.19,0.00026172,2]
[313757699,1707681043893,-1249.71971684,0.00026398,3]
[313757700,1707681043902,-163.07386802,0.00026428,2]
[313757701,1707681043912,-247.98,0.00026654,2]
[313757702,1707681043922,-272.87,0.00026664,2]
[313757703,1707681043931,-163.07386802,0.00026723,2]
[313757704,1707681043940,-1937.49790758,0.00026799,2]
[313757705,1707681043950,-1000.0,0.000268,2]
[313757706,1707681043959,-258.41,0.00026999,2]
[313757707,1707681043968,-1300.0,0.00027,3]
[313757708,1707681043978,-163.07386802,0.00027017,2]
[313757709,1707681043988,-258.41,0.00027136,2]
[313757710,1707681043997,-868.2,0.00027168,2]
[313757711,1707681044007,-3751.85,0.00027248,2]
[313757712,1707681044016,-258.41,0.00027273,2]
[313757713,1707681044025,-163.07386802,0.00027311,2]
[313757714,1707681044035,-258.41,0.0002741,2]
[313757715,1707681044046,-34944.0267747,0.00027459,2]
[313757716,1707681044056,-258.41,0.00027547,2]
[313757717,1707681044066,-163.07386802,0.00027606,2]
[313757718,1707681044076,-468.67171068,0.00027684,2]
[313757719,1707681044085,-205.0,0.00027776,8]
[313757720,1707681044095,-1937.49790758,0.00027853,2]
[313757721,1707681044105,-245000.0,0.000279,2]
[313757722,1707681044114,-792.7521,0.000279,2]
[313757723,1707681044124,-163.07386802,0.000279,2]
[313757724,1707681044134,-1130.52101422,0.000279,2]
[313757725,1707681044143,-1478.13723405,0.000279,2]
[313757726,1707681044153,-196.29826335,0.00027989,2]
[313757727,1707681044163,-500.0,0.00027998,2]
[313757728,1707681044172,-500.0,0.00027998,2]
[313757729,1707681044181,-500.0,0.00027998,2]
[313757730,1707681044191,-500.0,0.00027998,2]
[313757731,1707681044200,-500.0,0.00027998,2]
[313757732,1707681044210,-500.0,0.00027998,2]
[313757733,1707681044219,-500.0,0.00027998,2]
[313757734,1707681044228,-500.0,0.00027998,2]
[313757735,1707681044238,-617.89434646,0.00027998,2]
[313757736,1707681044247,-500.0,0.00027998,2]
[313757737,1707681044257,-500.0,0.00027998,2]
[313757738,1707681044266,-500.0,0.00027998,2]
[313757739,1707681044275,-500.0,0.00027998,2]
[313757740,1707681044284,-500.0,0.00027998,2]
[313757741,1707681044293,-500.0,0.00027998,2]
[313757742,1707681044303,-500.0,0.00027998,2]
[313757743,1707681044316,-500.0,0.00027998,2]
[313757744,1707681044327,-414.24341427,0.00027998,2]
[313757745,1707681044337,-500.0,0.00027998,2]
[313757746,1707681044346,-500.0,0.00027998,2]
[313757747,1707681044355,-164.74,0.00027998,2]
[313757748,1707681044366,-199947.50437818,0.00027999,2]
[313757749,1707681044388,-306232.78485563,0.00027999,2]
[313757750,1707681044398,-60025.54105264,0.00028,2]
[313757751,1707681044412,-4785.53902399,0.00028,2]
[313757752,1707681044425,-2383.48134761,0.00028,2]
[313757753,1707681044438,-400.5890908,0.00028,2]
[313757754,1707681044470,-1293.0301377,0.00028,2]
[313757755,1707681044481,-200.0,0.00028,2]
[313757756,1707681044491,-155.9251105,0.00028,2]
[313757757,1707681044501,-8508.26133119,0.00028,2]
[313757758,1707681044511,-288.16846455,0.00028,2]
[313757759,1707681044522,-237.40288908,0.00028,2]
[313757760,1707681044532,-1030.58106699,0.00028,2]
[313757761,1707681044543,-297.3649624,0.00028,2]
[313757762,1707681044554,-5257.91463823,0.00028,2]
[313757763,1707681044568,-4244.0,0.00028,4]
[313757764,1707681044577,-63909.0,0.00028,4]
[313757765,1707681044586,-272.87,0.00028308,2]
[313757766,1707681044595,-1249.71971684,0.00028376,4]
[313757767,1707681044606,-1502.73273572,0.00028395,2]
[313757768,1707681044615,-169.825,0.00028436,2]
[313757769,1707681044624,-380.9302187,0.00028569,2]
[313757770,1707681044634,-1937.49790758,0.00028908,2]
[313757771,1707681044645,-247.98,0.00028918,2]
[313757772,1707681044656,-1350.0,0.00029,3]
[313757773,1707681044666,-34944.0267747,0.00029163,2]
[313757774,1707681044676,-228.36245335,0.000295,3]
[313757775,1707681044685,-801.09157369,0.00029576,6]
[313757776,1707681044694,-1308.22691073,0.00029576,6]
[313757777,1707681044703,-570.66285942,0.00029576,6]
[313757778,1707681044712,-193.59654112,0.00029576,6]
[313757779,1707681044721,-294.55842221,0.00029576,6]
[313757780,1707681044731,-254.56175799,0.00029576,6]
[313757781,1707681044740,-506.20771421,0.00029576,6]
[313757782,1707681044750,-277.24441,0.00029576,6]
[313757783,1707681044759,-168.5745273,0.00029576,6]
[313757784,1707681044769,-164.58611045,0.00029576,6]
[313757785,1707681044778,-347.87647193,0.00029576,6]
[313757786,1707681044788,-486.77082902,0.00029576,6]
[313757787,1707681044797,-587.39599966,0.00029576,6]
[313757788,1707681044807,-593.57399823,0.00029576,6]
[313757789,1707681044817,-2439.55376249,0.00029576,6]
[313757790,1707681044826,-430.34683155,0.00029576,6]
[313757791,1707681044835,-631.86375955,0.00029576,6]
[313757792,1707681044845,-1000.0,0.000296,2]
[313757793,1707681044854,-200.0,0.00029617,2]
[313757794,1707681044864,-200.0,0.00029617,3]
[313757795,1707681044873,-205.0,0.00029671,11]
[313757796,1707681044882,-222.0,0.000297,2]
[313757797,1707681044892,-868.2,0.00029884,2]
[313757798,1707681044901,-272.87,0.00029952,2]
[313757799,1707681044910,-1937.49790758,0.00029962,2]
[313757800,1707681044920,-407.75428958,0.00029998,2]
[313757801,1707681044930,-475.81370008,0.00029998,2]
[313757802,1707681044939,-311.25325278,0.00029998,2]
[313757803,1707681044949,-198.76225388,0.00029999,2]
[313757804,1707681044958,-156.00927671,0.0003,5]
[313757805,1707681044968,-260.18977229,0.0003,4]
[313757806,1707681044977,-9690.3204777,0.0003,2]
[313757807,1707681044987,-360.01041936,0.0003,2]
[313757808,1707681044996,-3000.0,0.0003,2]
[313757809,1707681045006,-155.0,0.0003,2]
[313757810,1707681045015,-1974.21330849,0.0003,4]
[313757811,1707681045025,-500.0,0.0003,5]
[313757812,1707681045034,-300.125475,0.0003,3]
[313757813,1707681045043,-7700.39437499,0.0003,4]
[313757814,1707681045053,-211.13912101,0.0003,4]
[313757815,1707681045062,-2670.10203907,0.0003,4]
[313757816,1707681045071,-365.19793278,0.0003,4]
[313757817,1707681045081,-156.45078527,0.0003,4]
[313757818,1707681045090,-820.1906062,0.0003,4]
[313757819,1707681045100,-405.61194202,0.0003,4]
[313757820,1707681045109,-157.93744737,0.0003,4]
[313757821,1707681045119,-918.13503745,0.0003,4]
[313757822,1707681045128,-171.35177675,0.0003,4]
[313757823,1707681045138,-153.6,0.0003,2]
[313757824,1707681045147,-3000.0,0.0003,2]
[313757825,1707681045156,-3000.0,0.0003,2]
[313757826,1707681045166,-3000.0,0.0003,2]
[313757827,1707681045175,-1000.0,0.0003,2]
[313757828,1707681045185,-4000.0,0.0003,2]
[313757829,1707681045194,-3000.0,0.0003001,2]
[313757830,1707681045203,-5469.225606,0.0003002,2]
[313757831,1707681045213,-150.0,0.00030137,2]
[313757832,1707681045222,-200.0,0.000302,2]
[313757833,1707681045232,-152.0,0.00030283,3]
[313757834,1707681045241,-1249.71971684,0.00030354,5]
[313757835,1707681045250,-183.20334468,0.0003049,2]
[313757836,1707681045260,-800.0,0.00030537,2]
[313757837,1707681045270,-3000.0,0.0003058,2]
[313757838,1707681045280,-200.0,0.000307,3]
[313757839,1707681045292,-150.0,0.00030714,2]
[313757840,1707681045303,-164.74,0.00030798,2]
[313757841,1707681045314,-1000.00009851,0.00030799,2]
[313757842,1707681045323,-354.22,0.000308,2]
[313757843,1707681045333,-34944.0267747,0.00030867,2]
[313757844,1707681045343,-500.0,0.00030943,2]
[313757845,1707681045353,-624.0,0.0003098,120]
[313757846,1707681045363,-50000.0,0.00031,2]
[313757847,1707681045373,-1400.0,0.00031,3]
[313757848,1707681045383,-1937.49790758,0.00031017,2]
[313757849,1707681045393,-7504.0,0.00031096,30]
[313757850,1707681045402,-247.98,0.00031181,2]
[313757851,1707681045411,-200.0,0.000312,3]
[313757852,1707681045424,-150.0,0.00031291,2]
[313757853,1707681045433,-500.0,0.00031413,2]
[313757854,1707681045444,-1000.0,0.00031429,2]
[313757855,1707681045454,-205.0,0.00031567,14]
[313757856,1707681045464,-380.9302187,0.00031631,2]
[313757857,1707681045474,-180.0,0.00031644,2]
[313757858,1707681045484,-200.0,0.000317,4]
[313757859,1707681045493,-152.0,0.00031774,4]
[313757860,1707681045503,-313.83822338,0.00031799,15]
[313757861,1707681045513,-151.0,0.000318,7]
[313757862,1707681045523,-151.0,0.000318,7]
[313757863,1707681045532,-151.0,0.000318,7]
[313757864,1707681045543,-151.0,0.000318,7]
[313757865,1707681045553,-151.0,0.000318,7]
[313757866,1707681045565,-151.0,0.000318,7]
[313757867,1707681045574,-151.0,0.000318,7]
[313757868,1707681045583,-151.0,0.000318,7]
[313757869,1707681045593,-151.0,0.000318,7]
[313757870,1707681045603,-151.0,0.000318,7]
[313757871,1707681045612,-151.0,0.000318,7]
[313757872,1707681045622,-151.0,0.000318,7]
[313757873,1707681045633,-151.0,0.000318,7]
[313757874,1707681045645,-321.145151,0.000318,7]
[313757875,1707681045901,-321.145151,0.000318,7]
[313757876,1707681045911,-175.057724,0.000318,7]
[313757877,1707681045921,-175.057724,0.000318,7]
[313757878,1707681045930,-151.0,0.000318,7]
[313757879,1707681045940,-151.0,0.000318,7]
[313757880,1707681045949,-192.917911,0.000318,7]
[313757881,1707681045958,-192.917911,0.000318,7]
[313757882,1707681045967,-300.633793,0.000318,7]
[313757883,1707681045976,-300.633793,0.000318,7]
[313757884,1707681045985,-151.0,0.000318,7]
[313757885,1707681045994,-151.0,0.000318,7]
[313757886,1707681046004,-1521.95313,0.000318,7]
[313757887,1707681046013,-151.0,0.000318,7]
[313757888,1707681046022,-1521.95313,0.000318,7]
[313757889,1707681046032,-151.0,0.000318,7]
[313757890,1707681046041,-151.0,0.000318,7]
[313757891,1707681046050,-290.500525,0.000318,7]
[313757892,1707681046059,-290.500525,0.000318,7]
[313757893,1707681046067,-902.528406,0.000318,7]
[313757894,1707681046077,-902.528406,0.000318,7]
[313757895,1707681046086,-252.042343,0.000318,7]
[313757896,1707681046096,-252.042343,0.000318,7]
[313757897,1707681046106,-336.256021,0.000318,7]
[313757898,1707681046115,-336.256021,0.000318,7]
[313757899,1707681046124,-718.928011,0.000318,7]
[313757900,1707681046134,-718.928011,0.000318,7]
[313757901,1707681046143,-367.545726,0.000318,7]
[313757902,1707681046152,-367.545726,0.000318,7]
[313757903,1707681046162,-763.76098,0.000318,7]
[313757904,1707681046172,-173.204394,0.000318,7]
[313757905,1707681046182,-173.204394,0.000318,7]
[313757906,1707681046191,-151.0,0.000318,7]
[313757907,1707681046201,-151.0,0.000318,7]
[313757908,1707681046210,-163.333812,0.000318,7]
[313757909,1707681046220,-163.333812,0.000318,7]
[313757910,1707681046230,-151.0,0.000318,7]
[313757912,1707681046239,-151.0,0.000318,7]
[313757913,1707681046247,-1079.903251,0.000318,7]
[313757915,1707681046257,-151.0,0.000318,7]
[313757917,1707681046266,-1079.903251,0.000318,7]
[313757919,1707681046275,-151.0,0.000318,7]
[313757921,1707681046284,-151.0,0.000318,7]
[313757923,1707681046293,-1321.303094,0.000318,7]
[313757925,1707681046303,-1321.303094,0.000318,7]
[313757927,1707681046312,-151.0,0.000318,7]
[313757928,1707681046321,-151.0,0.000318,7]
[313757929,1707681046330,-151.0,0.000318,7]
[313757930,1707681046339,-151.0,0.000318,7]
[313757931,1707681046348,-30524.49508121,0.000318,3]
[313757932,1707681046362,-353.25040439,0.000318,3]
[313757933,1707681046374,-13241.23600466,0.000318,3]
[313757934,1707681046396,-388.93617367,0.000318,3]
[313757935,1707681046420,-738.96385639,0.000318,3]
[313757936,1707681046435,-464.9119998,0.000318,3]
[313757937,1707681046446,-386.73367012,0.000318,3]
[313757938,1707681046458,-975.15003434,0.000318,3]
[313757940,1707681047405,-8618.5751076,0.000318,3]
[313757941,1707681047419,-37452.872118,0.000318,3]
[313757942,1707681047431,-38489.8427746,0.000318,3]
[313757943,1707681047444,-12371.6205,0.000318,3]
[313757944,1707681047459,-61628.6904797,0.000318,3]
[313757945,1707681047475,-12767.9459,0.000318,3]
[313757946,1707681047486,-35246.80325152,0.000318,3]
[313757947,1707681047497,-438.382934,0.000318,7]
[313757948,1707681047509,-438.382934,0.000318,7]
[313757949,1707681047520,-151.0,0.000318,7]
[313757950,1707681047530,-6718.684282,0.000318,7]
[313757951,1707681047541,-6718.684282,0.000318,7]
[313757952,1707681047555,-151.0,0.000318,7]
[313757953,1707681047569,-4746.743488,0.000318,7]
[313757954,1707681047580,-159.171102,0.000318,7]
[313757955,1707681047591,-4746.743488,0.000318,7]
[313757956,1707681047603,-159.171102,0.000318,7]
[313757957,1707681047613,-627.847349,0.000318,7]
[313757958,1707681047622,-1682.029639,0.000318,7]
[313757959,1707681047632,-627.847349,0.000318,7]
[313757960,1707681047643,-1682.029639,0.000318,7]
[313757961,1707681047652,-275.880164,0.000318,7]
[313757962,1707681047662,-275.880164,0.000318,7]
[313757963,1707681047672,-151.0,0.000318,7]
[313757964,1707681047684,-151.0,0.000318,7]
[313757965,1707681047694,-206.923013,0.000318,7]
[313757966,1707681047704,-151.0,0.000318,7]
[313757967,1707681047714,-151.0,0.000318,7]
[313757968,1707681047725,-280.970065,0.000318,7]
[313757969,1707681047735,-280.970065,0.000318,7]
[313757970,1707681047745,-243.798981,0.000318,7]
[313757971,1707681047755,-151.0,0.000318,7]
[313757972,1707681047766,-167.371544,0.000318,7]
[313757973,1707681047779,-167.371544,0.000318,7]
[313757974,1707681047790,-183.652338,0.000318,7]
[313757975,1707681047799,-183.652338,0.000318,7]
[313757976,1707681047808,-2323.783723,0.000318,7]
[313757977,1707681047817,-2323.783723,0.000318,7]
[313757978,1707681047827,-664.09616399,0.0003183,2]
[313757979,1707681047872,-2335.90383601,0.0003183,2]
[313757980,1707681047883,-150.0,0.00031867,2]
[313757981,1707681047894,-624.0,0.0003198,120]
[313757982,1707681047906,-4902.78149404,0.00032,2]
[313757983,1707681047920,-1599.8554,0.00032,2]
[313757985,1707681102853,400.4293,0.00022346,2]
[313757990,1707681138467,250.0,0.00022,2]
[313757991,1707681139732,250.0,0.00022274,2]
[313757992,1707681142564,150.0,0.00022,2]
[313758000,1707681206960,150.0,0.00022,2]
[313758004,1707681471323,160.0003422,0.00022325,2]
[313758006,1707681487350,173.58,0.00020511,2]
[313758007,1707681517565,-2000.0,0.00022419,2]
[313758008,1707681518089,-2000.0,0.00022419,2]
[313758009,1707681519086,-2000.0,0.00022419,2]
[313758010,1707681519777,-2000.0,0.00022419,2]
[313758011,1707681519900,-2000.0,0.00022419,2]
[313758012,1707681520624,-580.58550241,0.00022419,2]
[313758013,1707681520643,-266.84674691,0.00022419,2]
[313758014,1707681520663,-1152.56775068,0.0002242,2]
[313758015,1707681521783,-1179.05829854,0.0002242,2]
[313758016,1707681521804,-375.7357949,0.00022421,2]
[313758017,1707681521823,-155.0,0.00022422,2]
[313758018,1707681521844,-290.20590656,0.00022422,2]
[313758019,1707681522334,-2000.0,0.00022422,2]
[313758020,1707681525133,-2000.0,0.00022422,2]
[313758021,1707681526775,-431.89519451,0.00022422,2]
[313758022,1707681556777,4153.80793816,0.00022216,2]
[313758023,1707681573629,205.0,0.00021985,2]
[313758024,1707681591791,375.7357949,0.000224,2]
[313758025,1707681599244,494.56295727,0.000224,2]
[313758029,1707681710993,177.2,0.00022,2]
[313758031,1707681836175,250.0,0.00022196,2]
[313758032,1707681944490,173.64,0.000221,2]
[313758033,1707681981577,164.9,0.00020173,2]
[313758034,1707682034687,2025.1,0.00022003,2]
[313758035,1707682120407,250.0,0.00022091,2]
[313758063,1707682233457,-71.82115596,0.00022435,2]
[313758064,1707682233473,-629.75591621,0.00022435,2]
[313758065,1707682233483,-164.9,0.00022437,2]
[313758066,1707682233492,-6472.10183752,0.00022438,2]
[313758067,1707682233502,-150.0,0.00022439,2]
[313758068,1707682233511,-155.0,0.0002244,2]
[313758069,1707682233520,-158.50706686,0.0002244,2]
[313758070,1707682233530,-155.15888874,0.0002244,2]
[313758071,1707682233539,-573.84026338,0.0002244,2]
[313758072,1707682233549,-2409.11460082,0.0002244,2]
[313758073,1707682233559,-155.0,0.0002244,2]
[313758074,1707682233568,-1046.76795033,0.0002244,2]
[313758075,1707682233578,-181.83785309,0.0002244,2]
[313758076,1707682233587,-494.42411151,0.0002244,2]
[313758077,1707682233596,-4850.25086904,0.00022441,2]
[313758078,1707682233612,-674.83512036,0.00022441,2]
[313758079,1707682233621,-1000.0,0.00022442,2]
[313758080,1707682233631,-14914.90206853,0.00022442,2]
[313758081,1707682233643,-52320.69062686,0.00022442,2]
[313758082,1707682233656,-29416.51490461,0.00022442,2]
[313758083,1707682233666,-500.0,0.00022443,2]
[313758084,1707682233675,-150.0,0.00022548,2]
[313758085,1707682233684,-353.91,0.00022548,2]
[313758086,1707682233693,-192.43,0.0002256,2]
[313758087,1707682233703,-765.96,0.0002256,2]
[313758088,1707682233711,-826.36,0.00022583,2]
[313758089,1707682233721,-247.73314621,0.00022768,2]
[313758090,1707682233730,-499.99,0.00022768,2]
[313758091,1707682233739,-155.0,0.00022769,2]
[313758092,1707682233749,-1224.3928,0.000228,2]
[313758093,1707682233760,-155.0,0.00022883,2]
[313758094,1707682233769,-701.31570085,0.00022898,2]
[313758095,1707682233778,-57920.21544292,0.000229,2]
[313758096,1707682233790,-928.53687171,0.000229,2]
[313758097,1707682233817,-2734.84596553,0.000229,2]
[313758098,1707682233854,-1031.76632145,0.000229,2]
[313758099,1707682233866,-641.78023561,0.000229,2]
[313758100,1707682233877,-4044.32963381,0.000229,2]
[313758101,1707682233901,-499.95,0.000229,2]
[313758102,1707682233915,-653.000008,0.000229,2]
[313758103,1707682233929,-886.0,0.000229,2]
[313758150,1707682238041,-26311.24462097,0.000229,2]
[313758152,1707682238051,-172.7619059,0.000229,2]
[313758155,1707682238060,-1801.47461772,0.000229,2]
[313758157,1707682238069,-12386.0,0.000229,2]
[313758159,1707682238078,-1044.01580778,0.000229,2]
[313758161,1707682238087,-689.73410532,0.000229,2]
[313758162,1707682238096,-753.68067616,0.000229,2]
[313758165,1707682238106,-163.80983822,0.000229,2]
[313758167,1707682238115,-1249.0689948,0.000229,2]
[313758168,1707682238124,-185.59775337,0.000229,2]
[313758170,1707682238133,-3641.35767976,0.000229,2]
[313758176,1707682238178,-759.79017447,0.000229,2]
[313758179,1707682238190,-6188.82120412,0.000229,2]
[313758181,1707682238199,-794.92293263,0.0002296,2]
[313758183,1707682238208,-172.57238731,0.0002299,2]
[313758185,1707682238217,-172.57238731,0.0002299,2]
[313758187,1707682238226,-172.57238731,0.0002299,2]
[313758189,1707682238235,-312.03115718,0.00022996,2]
[313758191,1707682238244,-19711.14950798,0.00022997,2]
[313758193,1707682238254,-353.84330368,0.00022998,2]
[313758195,1707682238265,-165.98910177,0.00022998,2]
[313758197,1707682238274,-573.22603961,0.00022998,2]
[313758199,1707682238283,-371.95881086,0.00022998,2]
[313758201,1707682238292,-275.36632723,0.00022998,2]
[313758203,1707682238302,-155.0,0.00022998,2]
[313758205,1707682238311,-157.33659882,0.00022998,2]
[313758207,1707682238320,-248.08555624,0.00022998,2]
[313758209,1707682238329,-178.72127769,0.00022998,2]
[313758211,1707682238339,-162.3492961,0.00022998,2]
[313758213,1707682238348,-326.48983353,0.00022998,2]
[313758215,1707682238357,-399.30358691,0.00022998,2]
[313758217,1707682238366,-292.12118791,0.00022998,2]
[313758219,1707682238375,-156.19140517,0.00022998,2]
[313758221,1707682238384,-8694.13477272,0.00022998,2]
[313758223,1707682238393,-286.19980726,0.00022998,2]
[313758225,1707682238402,-549.34064812,0.00022998,2]
[313758227,1707682238412,-462.16379328,0.00022998,2]
[313758229,1707682238421,-155.0,0.00022998,2]
[313758231,1707682238430,-219.36744003,0.00022998,2]
[313758233,1707682238440,-631.10009728,0.00022998,2]
[313758235,1707682238448,-197.53896978,0.00022998,2]
[313758237,1707682238457,-155.4860074,0.00022998,2]
[313758239,1707682238467,-843.0,0.00022998,2]
[313758241,1707682238476,-534.13363385,0.00022998,2]
[313758243,1707682238485,-2789.31830158,0.00022998,2]
[313758245,1707682238495,-421.35142671,0.00022998,2]
[313758247,1707682238504,-432.71239679,0.00022998,2]
[313758249,1707682238515,-697.32652648,0.00022998,2]
[313758252,1707682238525,-306.23581506,0.00022998,2]
[313758254,1707682238534,-314.41234047,0.00022998,2]
[313758256,1707682238544,-743.6865163,0.00022998,2]
[313758258,1707682238553,-157.00366677,0.00022998,2]
[313758260,1707682238562,-200.0,0.00022998,2]
[313758262,1707682238572,-12303.42922454,0.00022998,2]
[313758264,1707682238581,-207.10060968,0.00022998,2]
[313758266,1707682238591,-181.07852074,0.00022998,2]
[313758268,1707682238599,-250.59287922,0.00022998,2]
[313758270,1707682238608,-3866.06682937,0.00022998,2]
[313758272,1707682238618,-156.39541135,0.00022998,2]
[313758274,1707682238627,-208.75325702,0.00022998,2]
[313758276,1707682238636,-526.21762846,0.00022998,2]
[313758278,1707682238645,-201.0925004,0.00022998,2]
[313758280,1707682238655,-458.02256108,0.00022998,2]
[313758282,1707682238665,-2943.47337633,0.00022998,2]
[313758284,1707682238674,-768.8565787,0.00022998,2]
[313758286,1707682238683,-175.06642056,0.00022998,2]
[313758288,1707682238692,-338.52942998,0.00022998,2]
[313758290,1707682238702,-331.08587568,0.00022998,2]
[313758292,1707682238711,-157.07734709,0.00022998,2]
[313758294,1707682238720,-220.15826523,0.00022998,2]
[313758296,1707682238730,-3682.10997027,0.00022998,2]
[313758298,1707682238739,-155.0,0.00022998,2]
[313758300,1707682238748,-413.3917858,0.00022998,2]
[313758302,1707682238758,-500.0,0.00022999,2]
[313758304,1707682238767,-235.32159405,0.00022999,2]
[313758306,1707682238776,-500.0,0.00022999,2]
[313758307,1707682238787,-489.41434142,0.00022999,2]
[313758308,1707682238795,-500.0,0.00022999,2]
[313758309,1707682238805,-463.78961736,0.00022999,2]
[313758310,1707682238814,-185.71524179,0.00022999,2]
[313758311,1707682238823,-488.40663073,0.00022999,2]
[313758312,1707682238832,-264.66122128,0.00022999,2]
[313758313,1707682238841,-228.79120946,0.00022999,2]
[313758314,1707682238850,-500.0,0.00022999,2]
[313758315,1707682238860,-168.17100853,0.00022999,2]
[313758316,1707682238869,-500.0,0.00022999,2]
[313758317,1707682238878,-269.75196147,0.00022999,2]
[313758318,1707682238887,-500.0,0.00022999,2]
[313758319,1707682238896,-1000.0,0.00022999,2]
[313758320,1707682238905,-360.30355171,0.00022999,2]
[313758321,1707682238916,-150.0,0.00022999,2]
[313758322,1707682238927,-150.0,0.00022999,2]
[313758323,1707682238965,-150.0,0.00022999,2]
[313758324,1707682238974,-150.0,0.00022999,2]
[313758325,1707682238983,-150.0,0.00022999,2]
[313758326,1707682238993,-150.0,0.00022999,2]